Cogmind - Beta 13 @@@ ROGUE MODE // 2024.05.27 @ 22:24:24 Player: Heliostats Result: Destroyed by G-47 Trooper with Particle Gun Performance ------------- Evolutions (0) 0 Regions Visited (2) 400 Robots Destroyed (22) 110 Value Destroyed (507) 507 Prototype IDs (2) 40 Alien Tech Used (0) 0 Bonus (0) 0 TOTAL SCORE: 1057 Bonus ------- None Cogmind --------- Core Integrity 0/250 Matter 260/300 Energy 100/100 System Corruption 0% Temperature Cool (9) Movement Walking (190) Ox1 Location -10/Mines Parts ------- > --- POWER (1) -------- (None) > --- PROPULSION (2) --- Aluminum Leg > --- UTILITY (2) ------ Medium Storage Unit Signal Interpreter > --- WEAPON (2) ------- Light Assault Rifle Mini Grenade Launcher > --- INVENTORY (10) --- Ion Engine Improved Heat Sink Weight Redist. System Sensor Array Improved Terrain Scanner ECM Suite Hacking Suite Mini Grenade Launcher Hammer Peak State ------------ > --- POWER ------------ Light Nuclear Core > --- PROPULSION ------- Light Treads Light Treads > --- UTILITY ---------- Medium Storage Unit ECM Suite > --- WEAPON ----------- Light Assault Rifle Light Assault Rifle > --- INVENTORY -------- Ion Engine Weight Redist. System Improved Terrain Scanner Light Assault Rifle Mini Grenade Launcher Mini Grenade Launcher Mining Laser [Rating: 10] Favorites ----------- Power Light Nuclear Core Engine Light Ion Engine Power Core Light Nuclear Core Propulsion Light Treads Treads Light Treads Leg Aluminum Leg Utility Medium Storage Unit Device ECM Suite Storage Medium Storage Unit Processor Signal Interpreter Weapon Light Assault Rifle Ballistic Gun Light Assault Rifle Launcher Mini Grenade Launcher Build | -11 -10 -10 ------- Run | Yrd Mat Min Slots Evolved . | . . . Power . | . . . Propulsion . | . . . Utility . | . . . Weapon . | . . . Parts Attached 19 | 7 11 1 Power 3 | 1 2 . Engine 1 | 1 . . Core 2 | . 2 . Reactor . | . . . Propulsion 6 | 2 4 . Treads 2 | 2 . . Leg 4 | . 4 . Wheel . | . . . Hover . | . . . Flight . | . . . Utility 6 | 2 4 . Device 3 | 1 2 . Storage 2 | 1 1 . Processor 1 | . 1 . Hackware . | . . . Protection . | . . . Artifact . | . . . Weapon 4 | 2 1 1 Energy Gun . | . . . Energy Cannon . | . . . Ballistic Gun 3 | 2 1 . Ballistic Cannon . | . . . Launcher 1 | . . 1 Special Weapon . | . . . Impact Weapon . | . . . Slashing Weapon . | . . . Piercing Weapon . | . . . Special Melee Weapon . | . . . Unidentified Prototypes . | . . . Parts Lost 5 | . 2 3 Power 2 | . 1 1 Propulsion 2 | . 1 1 Utility . | . . . Weapon 1 | . . 1 Highest Loss Streak 3 | . 1 3 To Critical Strikes . | . . . Average Slot Usage (%) 98 | . 98 96 Engine 5 | . 6 . Core 7 | . 6 12 Treads 16 | . 20 . Leg 11 | . 7 27 Device 10 | . 12 . Storage 14 | . 14 14 Processor 3 | . 1 14 Ballistic Gun 27 | . 28 26 Naked Turns . | . . . Heaviest Build 19 | 11 19 17 Greatest Support 40 | 40 40 20 Greatest Overweight (x) 6 | . 6 1 Average Overweight (x) . | . . . Largest Inventory Capacity 10 | 8 10 10 Average Capacity 9 | 7 9 10 Most Carried 10 | 3 10 10 Average Carried 6 | . 6 9 Final Capacity 10 | 8 10 10 Final Carried 10 | 1 10 9 Class Distribution -------------------- 79% | Mutant 20% | Scavenger-Mutant Dominant Class ---------------- Mutant | -10/Materials Scavenger-Mutant | -10/Mines Resources | -11 -10 -10 ----------- Run | Yrd Mat Min Matter Collected 554 | 300 236 18 Remotely . | . . . Salvage Created 754 | 120 511 123 Parts 52 | 9 37 6 Haulers Intercepted 1 | . 1 . Recyclers Shooed 1 | . 1 . Parts Field Recycled . | . . . Retrieved Matter . | . . . Parts Self-Destructed . | . . . Prevented . | . . . Kills | -11 -10 -10 ------- Run | Yrd Mat Min Combat Hostiles Destroyed 14 | . 11 3 Guns 13 | . 11 2 AOE 1 | . . 1 Classes Destroyed 7 | 2 5 . Tunneler 3 | 2 1 . Hauler 1 | . 1 . Recycler 1 | 1 . . Operator 1 | . 1 . Watcher 2 | . 2 . Swarmer 3 | . 3 . Grunt 11 | . 8 3 Best Kill Streak 6 | 2 6 2 Combat Bots Only 6 | . 6 2 Max Kills in Single Turn 1 | 1 1 1 Gunslinging . | . . . Exploded 1 | . . 1 Melee . | . . . Uniques/NPCs Destroyed . | . . . Combat | -11 -10 -10 -------- Run | Yrd Mat Min Hostile Shots Fired 119 | . 86 33 Missed 35 | . 27 8 Damage Taken 1104 | . 672 432 Core 259 | . 101 158 Absorbed by Shields . | . . . Regen/Repaired (Parts) 45 | . 45 . Core Remaining (%) 100 | 100 . . Volleys Fired 111 | 15 68 28 Largest 2 | 2 2 2 Hottest 50 | 40 40 50 Shots Fired 208 | 30 136 42 Gun 206 | 30 136 40 Cannon . | . . . Launcher 2 | . . 2 Special . | . . . Kinetic 206 | 30 136 40 Thermal . | . . . Explosive 2 | . . 2 Electromagnetic . | . . . Robot Hit Streak 10 | 5 10 7 Robot Miss Streak 3 | 1 3 2 Penetration Max . | . . . Secondary Targets 2 | . 2 . Max Gunslinging Chain 1 | . 1 . Shots Hit Robots 136 | 22 88 26 Core Hits 55 | 7 37 11 Critical Kills . | . . . Critical Parts Destroyed . | . . . Critical Strikes . | . . . Melee Attacks . | . . . Impact . | . . . Slashing . | . . . Piercing . | . . . Sneak Attacks . | . . . Combat Hostiles . | . . . Follow-up Attacks . | . . . Damage Inflicted 1242 | 195 706 341 Guns 1108 | 195 706 207 Cannons . | . . . Explosions 134 | . . 134 Melee . | . . . Ramming . | . . . Kinetic 1108 | 195 706 207 Thermal . | . . . Explosive 134 | . . 134 Electromagnetic . | . . . Impact . | . . . Slashing . | . . . Piercing . | . . . Highest Corruption . | . . . Average Corruption . | . . . Corruption Purged . | . . . Corruption Blocked . | . . . Overload Shots . | . . . Overflow Damage . | . . . Projectiles . | . . . Explosions . | . . . Melee . | . . . Knockbacks . | . . . Impact . | . . . Kinetic . | . . . Secondary . | . . . Self-Inflicted Damage 94 | . . 94 Shots 2 | . . 2 Rammed . | . . . Targets Rammed . | . . . Kicked . | . . . Crushed . | . . . Highest Temperature 23 | . 22 23 Average Temperature 7 | . 6 7 Received Heat Transfer 516 | . 324 192 Siege Activations . | . . . Robots Corrupted . | . . . Combat Hostiles . | . . . Parts Fried . | . . . Impact Corruptions . | . . . Robots Melted . | . . . Combat Hostiles . | . . . Parts Melted . | . . . Heat Transferred . | . . . Parts Sabotaged . | . . . Parts Stolen . | . . . Parts Stripped . | . . . Power Chain Reactions . | . . . Alert | -11 -10 -10 ------- Run | Yrd Mat Min Peak Influence 239 | 15 239 156 Initial 93 | . 9 93 Average 78 | 5 81 98 Maximum Alert Level 1 | . 1 . Low Security (%) 89 | 100 85 100 Level 1 10 | . 14 . Level 2 . | . . . Level 3 . | . . . Level 4 . | . . . Level 5 . | . . . High Security . | . . . Max Security . | . . . Squads Dispatched 6 | . 6 . Investigation 5 | . 5 . Extermination . | . . . Reinforcement 1 | . 1 . Assault . | . . . Garrison . | . . . Intercept . | . . . Searches Triggered . | . . . Construction Impeded . | . . . Haulers Reinforced . | . . . Active Scanning Responses . | . . . Cargo Convoy Interrupts . | . . . Stealth | -11 -10 -10 --------- Run | Yrd Mat Min Distress Signals 1 | . 1 . Communications Jammed . | . . . Distress Signals . | . . . Times Spotted 27 | . 23 4 Peak Tracking Total 7 | . 7 3 Tactical Retreats 3 | . 3 . Traps | -11 -10 -10 ------- Run | Yrd Mat Min Traps Triggered 3 | . 3 . Indirectly . | . . . Trap Hack Attempts . | . . . Triggered . | . . . Disarmed . | . . . Reprogrammed . | . . . Reused . | . . . Traps Extracted . | . . . Installed . | . . . Triggered . | . . . Machines | -11 -10 -10 ---------- Run | Yrd Mat Min Machines Disabled . | . . . Max in Single Turn . | . . . Machines Repaired . | . . . Machines Dismantled . | . . . Machines Sabotaged . | . . . Overloaded Fab Kills . | . . . Hacking | -11 -10 -10 --------- Run | Yrd Mat Min Machines Accessed 5 | . 5 . Terminals 3 | . 3 . Fabricators . | . . . Repair Stations 1 | . 1 . Recycling Units 1 | . 1 . Scanalyzers . | . . . Garrison Access . | . . . Total Hacks 16 | . 16 . Successful 8 | . 8 . Failed 8 | . 8 . Catastrophic . | . . . Database Lockouts . | . . . Manual . | . . . Terminals 12 | . 12 . Fabricators . | . . . Repair Stations 3 | . 3 . Recycling Units 1 | . 1 . Scanalyzers . | . . . Garrison Access . | . . . Terminal Hacks 5 | . 5 . Record 2 | . 2 . Prototype ID Bank 1 | . 1 . Alert Level 2 | . 2 . Fabricator Hacks . | . . . Repair Station Hacks 2 | . 2 . Scan Component 1 | . 1 . Repair 1 | . 1 . Recycling Unit Hacks 1 | . 1 . Report Inventory 1 | . 1 . Scanalyzer . | . . . Garrison Access Hacks . | . . . Unauthorized Hacks . | . . . Terminals . | . . . Fabricators . | . . . Repair Stations . | . . . Recycling Units . | . . . Scanalyzers . | . . . Garrison Access . | . . . Data Cores Recovered . | . . . Used . | . . . Hacking Detections 4 | . 4 . Full Trace Events 2 | . 2 . Feedback Events . | . . . Feedback Blocked . | . . . Robot Schematics Acquired . | . . . Robots Built . | . . . Authchips . | . . . Time . | . . . Total Robot Build Rating . | . . . Part Schematics Acquired . | . . . Parts Built . | . . . Authchips . | . . . Time . | . . . Total Part Build Rating . | . . . Parts Repaired 1 | . 1 . Time 38 | . 38 . Parts Recycled . | . . . Recycled Matter . | . . . Retrieved Matter . | . . . Retrieved Components . | . . . Parts Scanalyzed . | . . . Part Schematics Acquired . | . . . Parts Damaged . | . . . Bothacking | -11 -10 -10 ------------ Run | Yrd Mat Min Used RIF Installer . | . . . Robots Hacked . | . . . Non-combat . | . . . Combat . | . . . Robot Hacks Applied . | . . . Relay Couplers Released . | . . . Fabnet Peak Effective % . | . . . Robots Rewired . | . . . Allies Hacked . | . . . Hacks Repelled . | . . . Allies | -11 -10 -10 -------- Run | Yrd Mat Min Total Allies . | . . . Largest Group . | . . . Highest-Rated Group . | . . . Highest-Rated Ally . | . . . Total Orders . | . . . Ally Attacks . | . . . Total Damage . | . . . Kills . | . . . Allies Corrupted . | . . . Allies Melted . | . . . Intel | -11 -10 -10 ------- Run | Yrd Mat Min Robot Analysis Total . | . . . Derelict Logs Recovered . | . . . Drone Launches . | . . . Drone Recoveries . | . . . Exploration | -11 -10 -10 ------------- Run | Yrd Mat Min Turns Passed 1565 | 126 1145 294 Spaces Moved 794 | 47 600 147 Core 3 | 2 1 . Treads 480 | 45 435 . Legs 311 | . 164 147 Wheels . | . . . Hover . | . . . Flight . | . . . Fastest Speed 50 | 50 120 120 Average Speed 144 | 155 149 121 Slowest Speed 350 | 160 350 190 Overloaded Moves . | . . . Propulsion Burnouts . | . . . Robots Hopped . | . . . Cave-ins Triggered . | . . . Exploration Rate (%) 36 | 4 73 33 Regions Visited 2 Branch Regions 1 Pre-discovered Areas . | . . . Known Exits Taken 1 | . 1 . Unknown Exits Taken 1 | 1 . . Scrap Searched 2 | . . 2 Spaces Dug . | . . . Terrain Destroyed 31 | . . 31 Melee . | . . . Projectile . | . . . AOE 31 | . . 31 Terrain Rammed . | . . . Walls Destroyed . | . . . Machines Disabled . | . . . Actions | -11 -10 -10 --------- Run | Yrd Mat Min Total 1044 | 76 739 229 Wait 91 | . 38 53 Move 792 | 46 599 147 Hop . | . . . Pick Up 24 | 8 16 . Fast Attach 2 | . 2 . Attach 10 | 7 2 1 Detach . | . . . Swap 7 | . 7 . Drop 7 | . 7 . Fire 111 | 15 68 28 Melee . | . . . Ram . | . . . Kick . | . . . Crush . | . . . Escape Stasis . | . . . Rewire . | . . . Trap . | . . . Miscellaneous . | . . . Route ------- -11/Scrapyard -10/Materials (discovered 4 exits: *Mat x2 / *Min x2) -10/Mines (discovered 1 exit: *Mat) History --------- Turn | Location | Event 78 | -11/Scrapyard | Discovered new exit (range 15) 127 | -11/Scrapyard | Entered Materials 302 | -10/Materials | Build established: Mutant 516 | -10/Materials | Discovered new exit (range 13) 536 | -10/Materials | Discovered new exit (range 13) 647 | -10/Materials | Discovered new exit (range 14) 911 | -10/Materials | Discovered new exit (range 10) 1194 | -10/Materials | Identified exit to Mines 1264 | -10/Materials | Repaired Lgt. Nuclear Core 1272 | -10/Materials | Entered Mines 1357 | -10/Mines | Discovered new exit (range 6) 1363 | -10/Mines | Identified exit to Materials 1530 | -10/Mines | Core integrity fell below 50% 1555 | -10/Mines | Core integrity fell below 20% 1566 | -10/Mines | Destroyed by G-47 Trooper with Particle Gun Last Messages --------------- 01335_ Found 13 Matter. 01337_ U-05 Engineer lays Concrete. 01357_ EXIT=FOUND 01363_ EXIT=IDENTIFIED: MATERIALS 01469_ Searching scrap... 01469_ Found Hcp. Matter Pod. 01469_ Found Mining Laser. 01469_ Found ECM Suite. 01469_ Found 36 Matter. 01470_ Acquired 2 matter. 01500_ G-34 Mercenary destroyed. 01508_ Acquired 16 matter. 01523_ Lgt. Assault Rifle destroyed. 01527_ Lgt. Nuclear Core destroyed. 01544_ G-34 Mercenary destroyed. 01550_ G-47 Trooper destroyed. 01550_ K-01 Serf collects debris. 01552_ Aluminum Leg destroyed. 01557_ K-01 Serf collects debris. 01564_ R-06 Scavenger collects Ion Engine. Map ----- +----------------------------------------------------+ | ?????????????????????????????????????????????????? | | ?????????????????????????????????????????????????? | | ?????????????????????????????????????????????????? | | ?????????????????????????????????????????????????? | | ?????????????????????????????????????????????????? | | ?????????????????????????????????????????????????? | | ?????????????????????????????????????????????????? | | ?????????????????????????????????????????????????? | | ?????????????????????????????????????????????????? | | ?????????????????????????????????????????????????? | | ?????????????????????????????????????????????????? | | ?????????????????????????????????????????????????? | | ?????????????????????????????????????????????????? | | ?????????????????????????????????????????????????? | | ?????????????????????????????????????????????????? | | ?????????????????????????????????????????????????? | | ?????????????????????????????????????????????????? | | ?????????????????????????????????????????????????? | | ?????????????????????????????????????????????????? | | ?????????????????????????????????????????????????? | | ?????????????????????#######?????????????????????? | | ????????????????????## ##?????????????#??????? | | ???????????????###### #???????????# ##?????? | | ?????????????# = #??????????# #?????? | | ?????????????# # %g ###???????## ?????? | | ?????????? ????# @ ##?????# #??????? | | ?????????####????????# ##??## #???????? | | ?????????????????????# ### #????????? | | ?????????????????????###### = #???????????? | | ??????????????????????????## k% r ##???????????? | | ???????????????????????????## #????????????? | | ????????????????????????????## ##????????????? | | ?????????????????????????????## ###?????????????? | | ??????????????????????????????# #???????????????? | | ??????????????????????????????# t#???????????????? | | ??????????????????????????????# ####????????????? | | ??????????????????????????????# !#?????######## | | ??????????????????????????????# ##!#?????# | | ??????????????????????????????# ##%#?????# """ "" | | ??????????????????????????????# ##|#?????# """ "" | | ?????????########?????????????# ## #?????# """ "" | | ????????## ##????????????# ## #?????# | | ????????# ##???????????# ## #?????# """ | | ????????# """ ##?????????? ## #?????# """ | | ????????# """ ###????????##### #?????# """ < | | ????????## """ ##???????????# ####### | | ?????????# """ ##??????????# #### #### | | ?????????# ##?????????# #### #??# #??? | | ?????????## ## #????????## ##?# #??# #??# | | ??????????## #### ##??????## #?# #??# #?## | +----------------------------------------------------+ Best States ------------- Heat Dissipation 25 Energy Generation 14 Energy Capacity 160 Matter Stores 300 Matter Capacity 300 Sight Range 16 Robot Scan Range 14 Terrain Scan Range 16 Terrain Scan Density 10 ECM Strength 1 Evasion (%) 55 Recoil Reduction 2 Item Schematics ----------------- None Robot Schematics ------------------ None Fabricated ------------ Nothing Alien Tech Used ----------------- None Achievements -------------- None Challenges ------------ None Game ------ Seed OmegaMiningMatrix Manual? 0 Play Time 00:13:01 Cumulative 11.6 hours Start 2024.05.27 @ 22:13:24 End 2024.05.27 @ 22:24:24 Sessions 1 Manual Loads 0 Difficulty Rogue Special Mode None Game No. 13 Rogue 1 Adventurer 12 Explorer 0 Win Type - Total 0 Types 0/0/0/0/0/0/0/0/0 Lore% 17 Gallery% 18 Achievement% 15 Wizard Run 0 Options --------- Layout 1 ASCII 0 Keyboard 0 Movement Mouse Keybinds 0 Fullscreen 2 Font 24/Smallcaps Map View 50x35 Zoom Use 0% Tactical HUD 1 Map Filters NONE Filters NONE Steam 1 RUN: dd8e3311-d6ea-4095-b7e5-1552aec660d8